fUST/lending_fUST_20260302
["ID","MTS","AMOUNT","RATE_DAILY","PERIOD"]
[406970423,1772380805648,284.99,9.5e-05,2]
[406970424,1772380843676,-572.0,0.000108,2]
[406970425,1772380843714,-500.0,0.000108,2]
[406970426,1772380889866,-720.63904992,0.00013598,2]
[406970427,1772381403196,162.4,9.5e-05,2]
[406970428,1772381404198,162.4,9.7e-05,2]
[406970429,1772381404584,162.4,0.0001,2]
[406970458,1772381432061,-162.4,0.000102,2]
[406970460,1772381432072,-116.93251993,0.000105,2]
[406970468,1772381432151,-45.46748007,0.000105,2]
[406970470,1772381432160,-302.73848456,0.00013398,2]
[406970566,1772381438441,-431.87462275,0.00013398,2]
[406970587,1772381440866,-276.04776034,0.00013398,2]
[406970588,1772381440874,-610.0,0.00013398,2]
[406970589,1772381440882,-208.88809555,0.00013498,2]
[406970590,1772381440890,-222.35600866,0.00013498,2]
[406970591,1772381440897,-272.98785264,0.00013498,2]
[406970592,1772381440903,-219.35198919,0.00013499,2]
[406970593,1772381440910,-169.22,0.000135,2]
[406970594,1772381440916,-500.0,0.00013699,2]
[406970595,1772381440922,-1000.0,0.00014247,2]
[406970596,1772381440931,-500.0,0.00014795,2]
[406970597,1772381440939,-300.0,0.00018,10]
[406970598,1772381440949,-283.02061744,0.00018458,7]
[406970599,1772381440958,-266.0412349,0.00018678,7]
[406970600,1772381440967,-716.0,0.0001884,2]
[406970601,1772381440977,-266.0412349,0.00018952,7]
[406970602,1772381440986,-300.0,0.00018999,2]
[406970603,1772381440995,-6200.0,0.00019,2]
[406970604,1772381441004,-583.42679095,0.00019033,2]
[406970605,1772381441013,-1154.95811227,0.00019044,2]
[406970606,1772381441023,-168.0,0.00019089,2]
[406970607,1772381441033,-500.0,0.0001912,30]
[406970608,1772381441042,-500.0,0.0001912,30]
[406970609,1772381441053,-221.70102908,0.0001928,7]
[406970610,1772381441062,-168.0,0.00019314,2]
[406970611,1772381441071,-500.0,0.00019321,2]
[406970612,1772381441081,-500.0,0.00019321,2]
[406970613,1772381441090,-500.0,0.00019321,2]
[406970614,1772381441099,-500.0,0.00019321,2]
[406970615,1772381441109,-500.0,0.00019321,2]
[406970616,1772381441118,-187.78006525,0.00019321,2]
[406970617,1772381441127,-500.0,0.00019321,2]
[406970618,1772381441137,-194.72792766,0.00019321,2]
[406970619,1772381441146,-500.0,0.00019321,2]
[406970620,1772381441155,-201.93286099,0.00019321,2]
[406970621,1772381441165,-500.0,0.00019321,2]
[406970622,1772381441174,-209.40437684,0.00019321,2]
[406970623,1772381441183,-217.15233878,0.00019321,2]
[406970624,1772381441193,-500.0,0.00019321,2]
[406970625,1772381441203,-225.18697532,0.00019321,2]
[406970626,1772381441212,-233.51889341,0.00019321,2]
[406970627,1772381441222,-371.18045953,0.00019321,2]
[406970628,1772381441232,-500.0,0.00019321,2]
[406970629,1772381441241,-500.0,0.00019321,2]
[406970630,1772381441251,-500.0,0.00019321,2]
[406970631,1772381441260,-2395.75791481,0.00019344,2]
[406970632,1772381441270,-168.0,0.000194,2]
[406970633,1772381441279,-168.0,0.00019435,2]
[406970634,1772381441289,-1038.21444786,0.00019437,2]
[406970635,1772381441299,-165.87313511,0.00019437,2]
[406970636,1772381441308,-168.0,0.00019481,2]
[406970637,1772381441317,-648.20555189,0.00019499,2]
[406970638,1772381441327,-551.83297745,0.00019499,2]
[406970639,1772381441337,-500.0,0.00019499,2]
[406970640,1772381441347,-500.0,0.00019499,2]
[406970641,1772381441357,-500.0,0.00019499,2]
[406970642,1772381441367,-244.49191078,0.00019499,2]
[406970643,1772381441377,-500.0,0.00019499,2]
[406970644,1772381441387,-500.0,0.00019499,2]
[406970645,1772381441396,-500.0,0.00019499,2]
[406970646,1772381441405,-338.74116524,0.00019499,2]
[406970647,1772381441415,-500.0,0.00019499,2]
[406970648,1772381441425,-500.0,0.00019499,2]
[406970649,1772381441436,-500.0,0.00019499,2]
[406970650,1772381441445,-500.0,0.00019499,2]
[406970651,1772381441454,-500.0,0.00019499,2]
[406970652,1772381441463,-500.0,0.00019499,2]
[406970653,1772381441473,-500.0,0.00019499,2]
[406970654,1772381441483,-500.0,0.00019499,2]
[406970655,1772381441493,-500.0,0.00019499,2]
[406970656,1772381441503,-500.0,0.00019499,2]
[406970657,1772381441513,-500.0,0.00019499,2]
[406970658,1772381441522,-500.0,0.00019499,2]
[406970659,1772381441532,-500.0,0.00019499,2]
[406970660,1772381441541,-500.0,0.00019499,2]
[406970661,1772381441555,-500.0,0.00019499,2]
[406970662,1772381441565,-403.0931402,0.000195,2]
[406970663,1772381441574,-168.0,0.00019526,2]
[406970664,1772381441583,-744.97886799,0.00019538,2]
[406970665,1772381441594,-165.8731351,0.00019591,2]
[406970666,1772381441603,-878.94849984,0.000196,2]
[406970667,1772381441613,-188.05909112,0.00019601,2]
[406970668,1772381441623,-530.20482719,0.00019601,2]
[406970669,1772381441633,-5541.6219478,0.00019602,2]
[406970670,1772381441649,-711.90114523,0.00019602,2]
[406970704,1772381443169,-3071.88515864,0.00019602,2]
[406970705,1772381443293,-7928.09693281,0.00019602,2]
[406970706,1772381443305,-14186.617126,0.00019602,2]
[406970714,1772381446152,-8753.99696982,0.00019602,2]
[406970715,1772381446162,-27960.8243615,0.00019602,2]
[406970716,1772381446172,-708.0,0.00019664,5]
[406970717,1772381446181,-560.0,0.00019664,5]
[406970718,1772381446191,-294.2424755,0.00019691,2]
[406970719,1772381446202,-1227.5725289,0.00019745,2]
[406970720,1772381446217,-165.8731351,0.00019746,2]
[406970721,1772381446233,-168.0,0.0001976,2]
[406970722,1772381446246,-374.36595597,0.00019769,2]
[406970723,1772381446258,-234.443914,0.00019784,2]
[406970724,1772381446272,-5131.7406846,0.000198,2]
[406970725,1772381446285,-6155.91368692,0.000198,2]
[406970742,1772382003036,156.32,9.5e-05,2]
[406970795,1772382603154,157.95,9.5e-05,2]
[406970813,1772382632195,-1359.90335559,0.00010291,2]
[406970814,1772382632206,-3640.09664441,0.00010291,2]
[406970815,1772382632216,-150.0,0.00010448,2]
[406970816,1772382632224,-156.32,0.000105,2]
[406970818,1772382632234,-177.0,0.00012448,2]
[406970820,1772382632242,-152.142158,0.00012989,2]
[406970822,1772382632251,-198.22,0.000131,2]
[406970824,1772382632260,-1200.0,0.00013172,2]
[406970826,1772382632268,-2231.50495088,0.00013173,2]
[406970828,1772382632277,-300.0,0.00013268,2]
[406970837,1772382632495,-14978.76003271,0.00013269,2]
[406970838,1772382632508,-2920.45545852,0.00013269,2]
[406970857,1772382638398,-10181.97071281,0.00010191,2]
[406970858,1772382638407,-19368.39359787,0.00013269,2]
[406970859,1772382638416,-500.0,0.00013273,2]
[406970860,1772382638426,-500.23833675,0.00013273,2]
[406970861,1772382638435,-500.0,0.00013273,2]
[406970862,1772382638445,-267.55442511,0.00013273,2]
[406970863,1772382638455,-500.0,0.00013273,2]
[406970864,1772382638464,-500.0,0.00013273,2]
[406970865,1772382638473,-500.82581334,0.00013273,2]
[406970866,1772382638483,-521.72454831,0.00013273,2]
[406970867,1772382638492,-501.04006137,0.00013273,2]
[406970868,1772382638502,-500.0,0.00013273,2]
[406970869,1772382638512,-501.4745583,0.00013273,2]
[406970870,1772382638521,-500.0,0.00013273,2]
[406970871,1772382638531,-500.0,0.00013273,2]
[406970872,1772382638542,-167.38745946,0.00013599,2]
[406970873,1772382638551,-300.0,0.00013673,2]
[406970874,1772382638561,-500.0,0.00013699,2]
[406970875,1772382638570,-500.58437146,0.00013699,2]
[406970876,1772382638580,-501.63625164,0.00013699,2]
[406970877,1772382638590,-407.07054453,0.00013699,2]
[406970878,1772382638599,-500.0,0.00013699,2]
[406970879,1772382638608,-500.0,0.00013699,2]
[406970880,1772382638623,-336.22608504,0.00013699,2]
[406970881,1772382638640,-313.8709596,0.00013699,2]
[406970882,1772382638656,-500.0,0.00013699,2]
[406970883,1772382638669,-500.0,0.00013699,2]
[406970884,1772382638684,-500.0,0.00013699,2]
[406970885,1772382638698,-500.0,0.00013699,2]
[406970886,1772382638714,-150.0,0.000137,2]
[406970887,1772382638729,-500.0,0.00013821,2]
[406970888,1772382638744,-844.64261261,0.00013821,2]
[406970889,1772382638759,-463.15738854,0.00013821,2]
[406970890,1772382638773,-853.18654598,0.00013821,2]
[406970891,1772382638786,-317.40084034,0.00013821,2]
[406970892,1772382638799,-18.51213294,0.000142,2]
[406970893,1772382638817,-210.49786706,0.000142,2]
[406970894,1772382638831,-600.0,0.00014221,2]
[406970895,1772382638844,-280.18245371,0.00014247,2]
[406970896,1772382638855,-500.0,0.00014247,2]
[406970897,1772382638870,-500.0,0.00014247,2]
[406970898,1772382638884,-500.0,0.00014247,2]
[406970899,1772382638897,-500.0,0.00014247,2]
[406970900,1772382638911,-500.0,0.00014247,2]
[406970901,1772382638930,-1000.0,0.00014247,2]
[406970902,1772382638946,-204.0,0.00014448,2]
[406970903,1772382638960,-1680.0,0.00014489,2]
[406970904,1772382638971,-420.0,0.00014547,2]
[406970905,1772382638983,-300.0,0.00014768,2]
[406970906,1772382638997,-1186.17095964,0.00014795,2]
[406970907,1772382639012,-179.92961,0.00015068,2]
[406970908,1772382639023,-2231.50495087,0.00015199,2]
[406970909,1772382639035,-209.98742268,0.000158,2]
[406970910,1772382639048,-500.0,0.00015835,2]
[406970911,1772382639061,-500.0,0.00015835,2]
[406970912,1772382639072,-587.0,0.00015949,2]
[406970913,1772382639083,-1430.25,0.00016438,2]
[406970914,1772382639098,-1430.25,0.00016438,2]
[406970915,1772382639110,-1430.25,0.00016438,2]
[406970916,1772382639123,-1430.25,0.00016438,2]
[406970917,1772382639135,-231.0,0.00016448,2]
[406970918,1772382639147,-2231.50495087,0.00017224,2]
[406970919,1772382639159,-823.0,0.00017486,2]
[406970920,1772382639171,-160.0,0.00018,2]
[406970921,1772382639183,-258.0,0.00018448,2]
[406970922,1772382639195,-716.0,0.0001872,2]
[406970923,1772382639207,-715.0,0.0001872,2]
[406970924,1772382639221,-2184.0,0.0001873,2]
[406970925,1772382639233,-637.0,0.0001873,2]
[406970926,1772382639245,-729.0,0.0001873,2]
[406970927,1772382639258,-172.213,0.0001873,2]
[406970928,1772382639269,-161.32827968,0.00018753,2]
[406970929,1772382639281,-1430.25,0.00018886,2]
[406970930,1772382639293,-250.0,0.00018934,2]
[406970931,1772382639307,-514.84070869,0.00018934,2]
[406970932,1772382639318,-201.93286099,0.00018934,2]
[406970933,1772382639329,-250.0,0.00018934,2]
[406970934,1772382639342,-266.07103838,0.00018934,2]
[406970935,1772382639354,-169.48786922,0.00018934,2]
[406970936,1772382639366,-187.78006525,0.00018934,2]
[406970937,1772382639378,-194.72792766,0.00018934,2]
[406970938,1772382639391,-151.0,0.00018934,2]
[406970939,1772382639404,-500.0,0.00018934,2]
[406970940,1772382639416,-151.0,0.00018934,2]
[406970941,1772382639428,-533.65751543,0.00018934,2]
[406970942,1772382639440,-151.0,0.00018934,2]
[406970943,1772382639452,-201.93286099,0.00018934,2]
[406970944,1772382639466,-209.40437684,0.00018934,2]
[406970945,1772382639478,-250.0,0.00018934,2]
[406970946,1772382639490,-217.15233878,0.00018934,2]
[406970947,1772382639502,-250.0,0.00018934,2]
[406970948,1772382639515,-225.18697532,0.00018934,2]
[406970949,1772382639527,-250.0,0.00018934,2]
[406970950,1772382639538,-233.51889341,0.00018934,2]
[406970951,1772382639551,-250.0,0.00018934,2]
[406970952,1772382639563,-242.15909246,0.00018934,2]
[406970953,1772382639575,-251.11897888,0.00018934,2]
[406970954,1772382639587,-260.4103811,0.00018934,2]
[406970955,1772382639599,-270.0455652,0.00018934,2]
[406970956,1772382639611,-280.03725112,0.00018934,2]
[406970957,1772382639624,-500.0,0.00018934,2]
[406970958,1772382639636,-290.39862941,0.00018934,2]
[406970959,1772382639648,-500.0,0.00018934,2]
[406970960,1772382639660,-301.1433787,0.00018934,2]
[406970961,1772382639673,-500.0,0.00018934,2]
[406970962,1772382639686,-500.0,0.00018934,2]
[406970963,1772382639699,-500.0,0.00018934,2]
[406970964,1772382639711,-500.0,0.00018934,2]
[406970965,1772382639724,-500.0,0.00018934,2]
[406970966,1772382639736,-500.0,0.00018934,2]
[406970967,1772382639748,-416.50394265,0.00018934,2]
[406970968,1772382639761,-1000.0,0.00018972,5]
[406970969,1772382639773,-588.26139478,0.0001912,30]
[406970970,1772382639785,-337.01591766,0.0001912,30]
[406970971,1772382639797,-337.01591766,0.0001912,30]
[406970972,1772382639808,-411.73860522,0.0001912,30]
[406970973,1772382639820,-325.96816468,0.0001912,30]
[406970974,1772382639833,-406.34016257,0.0001912,30]
[406970975,1772382639844,-716.0,0.000192,2]
[406970976,1772382639856,-2231.50495087,0.0001925,2]
[406970977,1772382639868,-1000.0,0.00019471,2]
[406970978,1772382639880,-679.836,0.00019471,2]
[406970979,1772382639892,-183.636807,0.00019483,7]
[406970980,1772382639904,-899.53668634,0.00019563,2]
[406970981,1772382639919,-778.22507487,0.000196,2]
[406970982,1772382639931,-500.0,0.00019614,2]
[406970983,1772382639943,-500.0,0.00019614,2]
[406970984,1772382639955,-1430.25,0.00019614,2]
[406970985,1772382639968,-16279.7250976,0.00019615,2]
[406970986,1772382639980,-4465.4108487,0.00019615,2]
[406970987,1772382639994,-1614.6514059,0.00019615,2]
[406970988,1772382640006,-166.83,0.0001979,3]
[406970989,1772382640018,-500.51,0.0001979,3]
[406970990,1772382640030,-2671.73625284,0.000198,2]
[406970991,1772382640042,-352.26551505,0.000198,2]
[406970992,1772382640054,-402.58916005,0.000198,2]
[406970993,1772382640066,-628.41651702,0.000198,2]
[406970994,1772382640078,-287.55129468,0.000198,2]
[406970995,1772382640090,-1000.0,0.000198,2]
[406970996,1772382640101,-1000.0,0.000198,2]
[406970997,1772382640113,-1000.0,0.000198,2]
[406970998,1772382640125,-1000.0,0.000198,2]
[406970999,1772382640137,-976.87541847,0.000198,2]
[406971000,1772382640148,-179.77929782,0.000198,2]
[406971001,1772382640161,-151.0,0.000198,2]
[406971002,1772382640173,-151.0,0.000198,2]
[406971003,1772382640185,-151.0,0.000198,2]
[406971004,1772382640196,-151.0,0.000198,2]
[406971005,1772382640209,-151.0,0.000198,2]
[406971006,1772382640220,-151.0,0.000198,2]
[406971007,1772382640232,-168.0,0.00019817,2]
[406971008,1772382640244,-168.0,0.0001985,2]
[406971009,1772382640256,-168.0,0.00019862,2]
[406971010,1772382640268,-167.38745945,0.00019899,2]
[406971011,1772382640280,-1979.61546434,0.000199,2]
[406971012,1772382640291,-151.0,0.000199,2]
[406971013,1772382640304,-151.0,0.000199,2]
[406971014,1772382640316,-708.0,0.00019945,5]
[406971015,1772382640329,-561.0,0.00019945,5]
[406971016,1772382640340,-168.0,0.00019985,2]
[406971017,1772382640352,-1430.25,0.00019989,2]
[406971018,1772382640364,-19025.24,0.0001999,2]
[406971019,1772382640376,-1430.25,0.00019991,2]
[406971020,1772382640389,-600.0,0.00019993,2]
[406971022,1772382640400,-500.0,0.00019999,2]
[406971024,1772382640413,-500.0,0.00019999,2]
[406971026,1772382640425,-420.43179665,0.00019999,2]
[406971028,1772382640438,-500.0,0.00019999,2]
[406971030,1772382640448,-500.0,0.00019999,2]
[406971031,1772382640458,-500.0,0.00019999,2]
[406971058,1772382640773,-500.0,0.00019999,2]
[406971061,1772382640792,-500.0,0.00019999,2]
[406971063,1772382640802,-500.0,0.00019999,2]
[406971064,1772382640811,-500.0,0.00019999,2]
[406971066,1772382640820,-500.0,0.00019999,2]
[406971068,1772382640830,-500.0,0.00019999,2]
[406971070,1772382640839,-500.0,0.00019999,2]
[406971072,1772382640849,-500.0,0.00019999,2]
[406971073,1772382640858,-500.0,0.00019999,2]
[406971075,1772382640867,-527.20561864,0.00019999,2]
[406971077,1772382640876,-1430.25,0.00019999,2]
[406971079,1772382640885,-1430.25,0.00019999,2]
[406971080,1772382640895,-1430.25,0.00019999,2]
[406971082,1772382640904,-1430.25,0.00019999,2]
[406971083,1772382640913,-1430.25,0.00019999,2]
[406971085,1772382640926,-1430.25,0.00019999,2]
[406971087,1772382640935,-1430.25,0.00019999,2]
[406971089,1772382640945,-1430.25,0.00019999,2]
[406971090,1772382640953,-1430.25,0.00019999,2]
[406971092,1772382640963,-1430.25,0.00019999,2]
[406971093,1772382640972,-1430.25,0.00019999,2]
[406971095,1772382640982,-1430.25,0.00019999,2]
[406971097,1772382640994,-1430.25,0.00019999,2]
[406971099,1772382641004,-1430.25,0.00019999,2]
[406971101,1772382641013,-1430.25,0.00019999,2]
[406971102,1772382641023,-1430.42211512,0.00019999,2]
[406971103,1772382641033,-27438.24623179,0.0002,2]
[406971104,1772382641046,-747.13445252,0.0002,2]
[406971105,1772382641169,-744.97886799,0.00019559,2]
[406971106,1772382641179,-151.0,0.000198,2]
[406971107,1772382641189,-204.88980391,0.000198,2]
[406971108,1772382641199,-514.0,0.00019999,5]
[406971109,1772382641208,-590.0,0.00019999,5]
[406971110,1772382641217,-5822.8471743,0.0002,2]
[406971286,1772382646850,-582.42871061,0.0002,2]
[406971438,1772382648893,-46283.26807939,0.0002,2]
[406971439,1772382648904,-795.69750984,0.0002,2]
[406971440,1772382648937,-1962.23774358,0.0002,2]
[406971441,1772382648948,-3947.79378949,0.0002,2]
[406971442,1772382648960,-1115.61073964,0.0002,2]
[406971443,1772382663581,-500.0,0.00013273,2]
[406971444,1772382663619,-52.90049318,0.00013699,2]
[406971445,1772382692898,-500.0,0.00013273,2]
[406971451,1772383162637,297.34,0.000158,120]
[406971452,1772383203840,153.05,9.5e-05,2]
[406971453,1772383204215,153.05,9.6e-05,2]
[406971454,1772383204584,153.05,9.7e-05,2]
[406971455,1772383204956,153.05,9.8e-05,2]
[406971456,1772383205481,153.05,9.8e-05,2]
[406971457,1772383205842,153.05,9.9e-05,2]
[406971458,1772383206332,153.05,0.0001,2]
[406971459,1772383238956,3483.629206,0.0001001,2]
[406971486,1772383832345,-150.0,0.00010125,2]
[406971488,1772383832355,-153.05,0.000102,2]
[406971490,1772383832364,-153.05,0.000103,2]
[406971492,1772383832374,-153.05,0.000104,2]
[406971494,1772383832383,-153.05,0.000105,2]
[406971496,1772383832392,-500.0,0.000108,2]
[406971498,1772383832401,-500.0,0.000108,2]
[406971500,1772383832410,-500.0,0.000108,2]
[406971502,1772383832420,-300.0,0.00012099,2]
[406971504,1772383832430,-300.0,0.00012099,2]
[406971506,1772383832439,-300.0,0.00012099,2]
[406971507,1772383832448,-300.0,0.00012099,2]
[406971509,1772383832457,-1200.0,0.00012099,2]
[406971511,1772383832467,-336.60330265,0.000121,2]
[406971513,1772383832479,-663.39669735,0.000121,2]
[406971515,1772383832491,-1000.0,0.000121,2]
[406971517,1772383832501,-3143.668248,0.000121,2]
[406971519,1772383832510,-177.0,0.00012125,2]
[406971521,1772383832520,-15.93505465,0.00012172,2]
[406971523,1772383832531,-305.668248,0.00012172,2]
[406971525,1772383832546,-68.20000727,0.00012172,2]
[406971527,1772383832556,-332.71510556,0.00012172,2]
[406971544,1772383838783,-67.28489444,0.00012172,2]
[406971545,1772383838793,-240.0,0.00012172,2]
[406971546,1772383838802,-300.0,0.00012828,2]
[406971547,1772383838812,-500.0,0.00013273,2]
[406971548,1772383838821,-500.0,0.00013273,2]
[406971549,1772383838831,-500.0,0.00013273,2]
[406971550,1772383838841,-500.0,0.00013273,2]
[406971551,1772383838850,-153.28862122,0.00013273,2]
[406971552,1772383838861,-204.46369148,0.00013273,2]
[406971553,1772383838871,-333.53630852,0.00013273,2]
[406971554,1772383838891,-166.46369148,0.00013273,2]
[406971555,1772383838901,-500.0,0.00013273,2]
[406971556,1772383838910,-500.0,0.00013273,2]
[406971557,1772383838920,-420.0,0.00013281,2]
[406971559,1772383838929,-892.0,0.00013309,2]
[406971561,1772383838939,-276.63789255,0.00013345,2]
[406971563,1772383838948,-703.12088916,0.00013595,2]
[406971565,1772383838958,-2260.80579977,0.00013598,2]
[406971567,1772383838967,-151.0,0.00013688,2]
[406971569,1772383838976,-151.0,0.00013688,2]
[406971572,1772383838986,-151.0,0.00013688,2]
[406971574,1772383839001,-151.0,0.00013688,2]
[406971575,1772383839011,-151.0,0.00013688,2]
[406971577,1772383839020,-151.0,0.00013688,2]
[406971579,1772383839030,-151.0,0.00013688,2]
[406971582,1772383839039,-151.0,0.00013688,2]
[406971584,1772383839049,-151.0,0.00013688,2]
[406971586,1772383839058,-151.0,0.00013688,2]
[406971588,1772383839068,-151.0,0.00013688,2]
[406971590,1772383839077,-151.0,0.00013688,2]
[406971592,1772383839086,-151.0,0.00013688,2]
[406971594,1772383839095,-151.0,0.00013688,2]
[406971596,1772383839104,-500.0,0.00013695,2]
[406971598,1772383839114,-500.0,0.00013695,2]
[406971600,1772383839125,-500.0,0.00013695,2]
[406971602,1772383839135,-500.0,0.00013695,2]
[406971603,1772383839149,-500.0,0.00013695,2]
[406971604,1772383839160,-500.0,0.00013695,2]
[406971605,1772383839170,-533.87411653,0.00013695,2]
[406971606,1772383839182,-500.0,0.00013695,2]
[406971607,1772383839192,-500.0,0.00013695,2]
[406971608,1772383839203,-500.0,0.00013695,2]
[406971609,1772383839213,-500.0,0.00013695,2]
[406971610,1772383839223,-500.0,0.00013695,2]
[406971611,1772383839234,-500.0,0.00013695,2]
[406971612,1772383839254,-500.0,0.00013695,2]
[406971613,1772383839265,-500.0,0.00013695,2]
[406971614,1772383839279,-500.0,0.00013695,2]
[406971615,1772383839289,-500.0,0.00013695,2]
[406971616,1772383839300,-221.52141267,0.00013695,2]
[406971617,1772383839311,-500.0,0.00013695,2]
[406971618,1772383839321,-500.0,0.00013695,2]
[406971619,1772383839331,-500.0,0.00013695,2]
[406971620,1772383839342,-500.0,0.00013695,2]
[406971621,1772383839354,-500.0,0.00013695,2]
[406971622,1772383839364,-500.0,0.00013695,2]
[406971623,1772383839373,-500.0,0.00013695,2]
[406971624,1772383839383,-500.0,0.00013695,2]
[406971625,1772383839393,-500.0,0.00013695,2]
[406971626,1772383839402,-262.53178777,0.00013698,2]
[406971627,1772383839412,-271.84223459,0.00013698,2]
[406971628,1772383839422,-500.0,0.00013698,2]
[406971629,1772383839432,-500.0,0.00013698,2]
[406971630,1772383839441,-500.0,0.00013698,2]
[406971631,1772383839451,-500.0,0.00013698,2]
[406971632,1772383839462,-500.0,0.00013698,2]
[406971633,1772383839472,-500.0,0.00013698,2]
[406971634,1772383839481,-155.27075255,0.00013698,2]
[406971635,1772383839491,-500.0,0.00013698,2]
[406971636,1772383839501,-500.0,0.00013698,2]
[406971637,1772383839511,-426.19312835,0.00013698,2]
[406971638,1772383839520,-501.62619322,0.00013698,2]
[406971639,1772383839530,-500.0,0.00013698,2]
[406971640,1772383839540,-500.0,0.00013698,2]
[406971641,1772383839551,-500.0,0.00013698,2]
[406971642,1772383839560,-500.0,0.00013698,2]
[406971643,1772383839570,-500.0,0.00013698,2]
[406971644,1772383839580,-500.0,0.00013698,2]
[406971645,1772383839590,-500.0,0.00013698,2]
[406971646,1772383839600,-500.0,0.00013698,2]
[406971647,1772383839609,-1902.06634725,0.00013699,2]
[406971648,1772383839619,-1902.06634725,0.00013699,2]
[406971649,1772383839629,-165.78854723,0.00013699,2]
[406971650,1772383839639,-502.79477628,0.00013699,2]
[406971651,1772383839649,-500.0,0.00013699,2]
[406971652,1772383839660,-500.0,0.00013699,2]
[406971653,1772383839669,-206.95423162,0.00013699,2]
[406971654,1772383839679,-500.0,0.00013699,2]
[406971655,1772383839689,-449.16954893,0.00013699,2]
[406971656,1772383839698,-500.0,0.00013699,2]
[406971657,1772383839708,-500.0,0.00013699,2]
[406971658,1772383839718,-176.10577262,0.00013699,2]
[406971659,1772383839728,-202.15686536,0.00013699,2]
[406971660,1772383839738,-500.0,0.00013699,2]
[406971661,1772383839755,-165.02026817,0.00013699,2]
[406971662,1772383839765,-500.0,0.00013699,2]
[406971663,1772383839775,-500.0,0.00013699,2]
[406971664,1772383839784,-500.0,0.00013699,2]
[406971665,1772383839797,-500.0,0.00013699,2]
[406971666,1772383839806,-500.0,0.00013699,2]
[406971667,1772383839816,-500.0,0.00013699,2]
[406971668,1772383839825,-150.0,0.000137,2]
[406971669,1772383839834,-642.72573877,0.00013821,2]
[406971670,1772383839844,-1000.0,0.00013821,2]
[406971671,1772383839853,-500.0,0.00013821,2]
[406971672,1772383839862,-1000.0,0.00013821,2]
[406971673,1772383839872,-1000.0,0.00013821,2]
[406971674,1772383839881,-1000.0,0.00013821,2]
[406971675,1772383839891,-500.0,0.00013821,2]
[406971676,1772383839901,-500.0,0.00013972,2]
[406971677,1772383839910,-204.0,0.00014125,2]
[406971678,1772383839920,-970.07154955,0.00014175,2]
[406971679,1772383839929,-724.5550447,0.00014175,2]
[406971680,1772383839939,-150.01,0.000142,2]
[406971681,1772383839949,-500.0,0.00014246,2]
[406971682,1772383839959,-1000.0,0.00014247,2]
[406971683,1772383839968,-1000.0,0.00014247,2]
[406971684,1772383839978,-1000.0,0.00014247,2]
[406971685,1772383839988,-508.53041819,0.00014247,2]
[406971686,1772383840002,-1000.0,0.00014247,2]
[406971687,1772383840011,-1000.0,0.00014247,2]
[406971688,1772383840021,-1000.0,0.00014247,2]
[406971689,1772383840031,-349.47268126,0.00014247,2]
[406971690,1772383840040,-1000.0,0.00014247,2]
[406971691,1772383840050,-1142.71585317,0.00014247,2]
[406971692,1772383840060,-832.32185963,0.00014368,2]
[406971693,1772383840070,-1500.0,0.00014368,2]
[406971694,1772383840079,-1500.0,0.00014368,2]
[406971695,1772383840088,-371.14337903,0.00014446,2]
[406971696,1772383840097,-500.0,0.00014447,2]
[406971697,1772383840308,-500.0,0.00014447,2]